bitfinex-derivatives/quotes_SOLF0:USTF0_20250630
["timestamp","ask_amount","ask_price","bid_price","bid_amount"]
[1751301381120,6.3786,156.74,156.69,6.3801]
[1751301381824,6.3788,156.73,156.69,6.3801]
[1751301382012,5.52757074,156.78,156.68,37.601]
[1751301382213,6.3795,156.72,156.68,37.601]
[1751301382622,6.3795,156.72,156.68,8.6417]
[1751301383120,550.42,156.83,156.68,7.78857074]
[1751301383328,5.52573959,156.83,156.73,5.52573959]
[1751301383520,5.52573959,156.83,156.73,40.88573959]
[1751301383720,5.52347651,156.83,156.73,47.26227651]
[1751301383919,5.52347651,156.81,156.7,35.36]
[1751301384118,5.52347651,156.79,156.68,2.261]
[1751301384319,6.3783,156.75,156.68,43.14447651]
[1751301384817,6.3783,156.75,156.7,6.3796]
[1751301385019,40.88347651,156.82,156.72,5.52347651]
[1751301385326,40.88347651,156.82,156.72,47.26237651]
[1751301385521,5.52347651,156.78,156.72,35.36]
[1751301385920,40.88347651,156.78,156.69,6.3803]
[1751301386215,6.3791,156.73,156.68,43.14447651]
[1751301386615,6.3785,156.74,156.68,43.14447651]
[1751301386919,35.36,156.78,156.7,6.3799]
[1751301387227,6.3783,156.75,156.7,6.3799]
[1751301387418,35.36,156.78,156.69,6.3803]
[1751301387622,35.36,156.78,156.68,37.621]
[1751301387923,5.52347651,156.75,156.67,2.2182]
[1751301388122,40.88347651,156.74,156.67,2.2182]
[1751301388921,40.88347651,156.74,156.63,5.52347651]
[1751301389121,2.1138,156.73,156.62,2.1819]
[1751301389324,5.52347651,156.72,156.62,7.70537651]
[1751301389925,5.52347651,156.72,156.62,9.86107651]
[1751301390126,6.3811,156.68,156.64,6.3821]
[1751301390318,5.52347651,156.72,156.63,5.52347651]
[1751301390919,6.3811,156.68,156.64,6.3823]
[1751301391121,5.52347651,156.72,156.63,5.52347651]
[1751301391525,6.3817,156.66,156.63,5.52347651]
[1751301391822,35.36,156.7,156.63,5.52347651]
[1751301392324,35.36,156.7,156.62,4.3376]
[1751301393322,35.36,156.7,156.62,10.7206]
[1751301393725,35.36,156.7,156.62,4.3376]
[1751301393919,6.3816,156.67,156.62,10.7205]
[1751301394119,35.36,156.7,156.62,10.7205]
[1751301394321,35.36,156.7,156.62,4.3376]
[1751301394627,6.3816,156.67,156.63,6.3828]
[1751301394827,35.36,156.7,156.62,4.3376]
[1751301395026,40.88347651,156.7,156.53,5.52347651]
[1751301395232,5.52347651,156.65,156.54,35.38]
[1751301395527,5.52347651,156.63,156.54,35.38]
[1751301395829,35.38,156.65,156.54,35.38]
[1751301396022,6.3848,156.59,156.55,6.3861]
[1751301396224,5.52347651,156.64,156.54,35.38]
[1751301396523,5.52347651,156.64,156.55,6.3858]
[1751301396935,40.90347651,156.65,156.54,35.38]
[1751301397326,40.90347651,156.65,156.57,5.52347651]
[1751301397327,35.38,156.65,156.57,5.52347651]
[1751301397633,35.38,156.68,156.59,5.52347651]
[1751301397931,40.90347651,156.7,156.6,37.5546]
[1751301398130,5.52347651,156.68,156.6,37.5546]
[1751301398333,35.38,156.7,156.6,43.07807651]
[1751301398536,6.3815,156.67,156.63,6.3826]
[1751301398923,35.38,156.7,156.63,6.3826]
[1751301399230,35.38,156.7,156.6,43.07807651]
[1751301399725,35.38,156.7,156.61,6.3836]
[1751301400225,35.38,156.7,156.6,37.5546]
[1751301400431,40.90347651,156.7,156.6,37.5546]
[1751301401124,5.52347651,156.68,156.6,37.5546]
[1751301401320,5.52347651,156.69,156.6,37.5546]
[1751301401524,6.3829,156.63,156.6,37.5546]
[1751301401931,6.3834,156.62,156.6,37.5546]
[1751301402131,5.52347651,156.68,156.6,37.5546]
[1751301402527,5.52347651,156.69,156.6,37.5546]
[1751301403131,5.52347651,156.69,156.61,6.3834]
[1751301403431,40.90347651,156.7,156.6,37.5546]
[1751301403625,6.3812,156.67,156.6,37.5546]
[1751301404132,6.3812,156.67,156.61,5.52347651]
[1751301404333,6.3812,156.67,156.63,6.3825]
[1751301404630,2.1138,156.73,156.64,41.44347651]
[1751301404829,7.63727651,156.73,156.65,35.92]
[1751301405336,6.3811,156.68,156.65,35.92]
[1751301405531,6.3811,156.68,156.62,5.52347651]
[1751301405732,6.3811,156.68,156.63,35.92]
[1751301405936,43.55727651,156.73,156.63,35.92]
[1751301405937,6.3805,156.69,156.63,35.92]
[1751301406133,6.3805,156.69,156.65,6.382]
[1751301406336,6.3818,156.66,156.63,35.92]
[1751301406527,38.0338,156.73,156.63,35.92]
[1751301406730,5.52347651,156.74,156.64,5.52347651]
[1751301407232,5.52347651,156.72,156.63,35.92]
[1751301407433,41.44347651,156.72,156.6,7.69807651]
[1751301407629,35.92,156.72,156.6,2.1746]
[1751301407933,5.52347651,156.7,156.61,35.92]
[1751301408136,6.3821,156.65,156.61,35.92]
[1751301408434,6.3821,156.65,156.61,42.3036]
[1751301408629,5.52347651,156.7,156.61,35.92]
[1751301408630,6.3825,156.64,156.61,35.92]
[1751301409531,6.3825,156.64,156.61,42.3037]
[1751301410840,6.3825,156.64,156.61,35.92]
[1751301411436,6.3829,156.63,156.61,35.92]
[1751301412239,48.6785,156.72,156.61,35.92]
[1751301412240,5.52347651,156.7,156.61,35.92]
[1751301412631,6.3818,156.66,156.61,35.92]
[1751301412835,5.52347651,156.7,156.61,35.92]
[1751301413036,6.3814,156.67,156.64,6.3824]
[1751301413235,35.92,156.71,156.61,41.44347651]
[1751301413636,35.92,156.71,156.64,6.3824]
[1751301413942,35.92,156.71,156.63,5.52347651]
[1751301414138,35.92,156.74,156.63,5.52347651]
[1751301414445,41.44347651,156.74,156.63,5.52347651]
[1751301414840,6.3807,156.69,156.66,6.3816]
[1751301415033,41.44347651,156.74,156.67,2.0984]
[1751301415237,6.3805,156.69,156.67,2.0984]
[1751301415640,41.44347651,156.74,156.67,2.0984]
[1751301416339,35.92,156.74,156.67,2.0984]
[1751301416533,41.44347651,156.74,156.67,2.0984]
[1751301416932,6.3808,156.69,156.67,2.0984]
[1751301417544,41.44347651,156.74,156.67,2.0984]
[1751301418039,6.3802,156.7,156.67,2.0984]
[1751301418842,6.3802,156.7,156.67,8.4795]
[1751301419042,6.3802,156.7,156.67,2.0984]
[1751301420245,8.08414608,156.76,156.67,2.0984]
[1751301420545,97.21312243,156.79,156.7,5.52347651]
[1751301420742,97.21312243,156.79,156.71,35.92]
[1751301420944,97.21312243,156.79,156.72,5.52347651]
[1751301421140,2.0614,156.82,156.74,5.52347651]
[1751301421340,35.92,156.83,156.76,5.52347651]
[1751301421848,49.43572259,156.88,156.78,11.90017651]
[1751301422140,37.9814,156.88,156.8,5.52347651]
[1751301422346,37.9814,156.88,156.8,41.44347651]
[1751301422648,6.3741,156.85,156.81,6.3754]
[1751301422852,37.9814,156.88,156.8,41.44347651]
[1751301423038,6.3737,156.86,156.82,6.3749]
[1751301423245,5.93084608,156.93,156.84,5.52347651]
[1751301423545,5.52347651,156.94,156.85,38.1403]
[1751301423943,35.9,156.96,156.85,38.1403]
[1751301423944,47.35432259,156.96,156.85,38.1403]
[1751301424244,6.3717,156.91,156.86,11.89687651]
[1751301424442,41.42347651,156.96,156.86,5.52347651]
[1751301424748,598.65432259,156.99,156.85,38.1403]
[1751301424936,587.2,156.99,156.76,2.088]
[1751301425139,6.3746,156.84,156.79,11.89957651]
[1751301425340,5.52347651,156.88,156.79,5.52347651]
[1751301425848,35.9,156.9,156.82,6.3749]
[1751301426250,6.3735,156.86,156.82,6.3749]
[1751301426748,35.9,156.9,156.77,2.0848]
[1751301426749,6.375,156.83,156.77,2.0848]
[1751301426945,5.52347651,156.85,156.77,2.0848]
[1751301427145,5.52347651,156.83,156.77,2.0848]
[1751301427343,6.3763,156.8,156.77,2.0848]
[1751301427542,5.52347651,156.83,156.77,2.0848]
[1751301427737,6.3762,156.8,156.77,2.0848]
[1751301427943,2.1128,156.85,156.77,2.0848]
[1751301428747,6.3752,156.82,156.77,8.4616]
[1751301428952,35.9,156.86,156.77,2.0848]
[1751301429143,35.9,156.86,156.77,7.60827651]
[1751301429352,35.9,156.89,156.77,7.60827651]
[1751301429552,5.52347651,156.88,156.77,7.60827651]
[1751301430344,5.52347651,156.86,156.77,7.60827651]
[1751301430545,5.52347651,156.86,156.77,8.4619]
[1751301430950,5.52347651,156.86,156.77,7.60827651]
[1751301431152,2.2408,156.9,156.81,5.52347651]
[1751301431353,5.52347651,156.89,156.82,36.66]
[1751301431549,5.52347651,156.87,156.81,36.64]
[1751301431850,5.52347651,156.87,156.77,7.60827651]
[1751301431851,5.52347651,156.85,156.79,36.64]
[1751301432047,6.3754,156.82,156.79,36.64]
[1751301432240,5.52347651,156.85,156.79,36.64]
[1751301432644,6.3754,156.82,156.79,36.64]
[1751301432844,5.52347651,156.85,156.79,36.64]
[1751301433047,5.52347651,156.83,156.77,2.0848]
[1751301433247,36.64,156.84,156.73,2.1799]
[1751301433248,6.3779,156.76,156.73,2.1799]
[1751301433851,6.3781,156.75,156.73,2.1799]
[1751301434046,5.52347651,156.79,156.73,2.1799]
[1751301434250,6.3782,156.75,156.73,2.1799]
[1751301434451,5.52347651,156.78,156.72,36.64]
[1751301434652,5.52347651,156.78,156.69,42.16347651]
[1751301434847,5.52347651,156.78,156.69,43.0201]
[1751301435155,36.64,156.8,156.69,36.64]
[1751301435156,42.16347651,156.8,156.69,36.64]
[1751301435359,6.3795,156.72,156.69,36.64]
[1751301435747,5.52347651,156.76,156.69,36.64]
[1751301435950,6.379,156.73,156.69,36.64]
[1751301436551,6.379,156.73,156.69,43.0203]
[1751301436755,6.379,156.73,156.69,36.64]
[1751301437456,6.379,156.73,156.68,6.3808]
[1751301437658,6.3785,156.74,156.66,5.52347651]
[1751301437850,5.52347651,156.78,156.68,5.52347651]
[1751301438558,6.3786,156.74,156.7,6.3799]
[1751301438960,42.18347651,156.78,156.69,36.66]
[1751301439157,36.66,156.78,156.69,36.66]
[1751301439553,6.3778,156.76,156.72,6.3792]
[1751301440153,36.66,156.78,156.72,6.3792]
[1751301440358,6.378,156.75,156.71,6.3794]
[1751301441060,6.3784,156.74,156.7,6.3799]
[1751301441451,6.3788,156.73,156.69,36.66]
[1751301441656,6.3788,156.73,156.69,43.0402]
[1751301442061,42.18347651,156.78,156.69,36.66]
[1751301442661,42.18347651,156.78,156.7,6.3799]
[1751301443355,42.18347651,156.78,156.69,36.66]
[1751301443356,36.66,156.78,156.69,36.66]
[1751301444858,5.52347651,156.77,156.69,36.66]
[1751301445262,6.3786,156.74,156.7,6.3799]
[1751301445562,5.52347651,156.77,156.7,6.3799]
[1751301445963,6.3785,156.74,156.7,6.3799]
[1751301446360,5.52347651,156.77,156.71,6.3795]
[1751301446766,5.52347651,156.77,156.69,36.66]
[1751301447158,6.3782,156.75,156.69,36.66]
[1751301447663,6.3782,156.75,156.71,6.3794]
[1751301448862,5.52347651,156.81,156.7,5.52347651]
[1751301449063,5.52347651,156.81,156.69,36.66]
[1751301449064,5.52347651,156.79,156.69,42.18347651]
[1751301449462,6.3779,156.76,156.71,6.3792]
[1751301449765,5.52347651,156.79,156.71,6.3792]
[1751301450158,6.3779,156.76,156.72,6.379]
[1751301450364,6.3779,156.76,156.69,42.18347651]
[1751301450558,7.79957651,156.82,156.69,36.66]
[1751301450760,6.377,156.78,156.74,6.3781]
[1751301450956,7.79957651,156.82,156.73,36.66]
[1751301451455,36.66,156.83,156.73,36.66]
[1751301451456,36.66,156.83,156.74,5.52347651]
[1751301451660,36.66,156.83,156.73,38.7784]
[1751301451861,6.3758,156.81,156.77,6.3769]
[1751301452368,6.3758,156.81,156.76,5.52347651]
[1751301452568,6.3758,156.81,156.78,6.3767]
[1751301452756,6.3758,156.81,156.73,2.1184]
[1751301452757,5.52347651,156.81,156.73,2.1184]
[1751301452956,5.52347651,156.81,156.73,8.497]
[1751301453161,5.52347651,156.81,156.73,2.1184]
[1751301453666,6.3778,156.76,156.73,2.1184]
[1751301454669,6.378,156.75,156.73,2.1184]
[1751301454858,5.52347651,156.81,156.73,2.1184]
[1751301455063,6.3786,156.74,156.7,45.1596]
[1751301455263,5.52347651,156.79,156.7,38.7798]
[1751301455462,36.66,156.8,156.7,38.7798]
[1751301455663,6.378,156.75,156.72,6.3792]
[1751301455865,6.378,156.75,156.7,38.7798]
[1751301456264,6.378,156.75,156.71,6.3794]
[1751301456569,36.66,156.8,156.7,38.7798]
[1751301456770,42.18347651,156.8,156.72,6.379]
[1751301457164,6.3779,156.76,156.72,6.379]
[1751301457765,42.18347651,156.83,156.73,5.52347651]
[1751301457965,42.18347651,156.83,156.74,36.66]
[1751301458567,5.52347651,156.81,156.74,36.66]
[1751301458871,6.3774,156.77,156.74,36.66]
[1751301459072,5.52347651,156.81,156.74,36.66]
[1751301459273,5.52347651,156.79,156.71,36.66]
[1751301459574,6.3783,156.75,156.71,43.0393]
[1751301459775,5.52347651,156.79,156.71,36.66]
[1751301459969,42.18347651,156.79,156.71,36.66]
[1751301460169,36.66,156.79,156.71,36.66]
[1751301460674,36.66,156.79,156.71,43.0394]
[1751301460871,36.66,156.79,156.71,36.66]
[1751301461073,5.52347651,156.78,156.71,36.66]
[1751301461674,36.66,156.79,156.71,36.66]
[1751301462174,6.3774,156.77,156.73,6.3785]
[1751301462372,36.12,156.82,156.72,5.52347651]
[1751301462766,6.377,156.78,156.74,6.3782]
[1751301462966,38.1998,156.85,156.75,36.12]
[1751301463177,38.1998,156.85,156.76,7.59447651]
[1751301463476,43.79617651,156.88,156.78,5.52347651]
[1751301463677,43.79617651,156.88,156.79,36.12]
[1751301464075,43.79617651,156.88,156.8,6.3757]
[1751301465077,43.79617651,156.88,156.79,42.4962]
[1751301465278,43.79617651,156.88,156.79,36.12]
[1751301465481,6.3749,156.83,156.79,42.4961]
[1751301466178,6.3752,156.82,156.79,42.4961]
[1751301466675,6.3759,156.8,156.79,36.12]
[1751301466875,6.3759,156.8,156.77,2.2329]
[1751301466876,5.52347651,156.86,156.77,2.2329]
[1751301467276,6.3758,156.81,156.77,8.6098]
[1751301468381,5.52347651,156.84,156.76,38.191]
[1751301468576,41.64347651,156.84,156.76,38.191]
[1751301468777,6.377,156.78,156.76,38.191]
[1751301469079,5.52347651,156.82,156.76,38.191]
[1751301469382,6.377,156.78,156.76,38.191]
[1751301470378,6.3771,156.77,156.76,36.12]
[1751301470680,5.52347651,156.8,156.73,36.12]
[1751301470878,5.93084608,156.82,156.73,36.12]
[1751301471081,5.52347651,156.81,156.74,6.3782]
[1751301471378,49.70272259,156.84,156.74,5.52347651]
[1751301471579,49.70272259,156.84,156.74,11.90147651]
[1751301471784,43.77187651,156.84,156.74,5.52347651]
[1751301472082,6.3767,156.78,156.74,5.52347651]
[1751301472976,5.52347651,156.82,156.74,5.52347651]
[1751301472977,6.3773,156.77,156.74,5.52347651]
[1751301473181,44.17924608,156.84,156.74,5.52347651]
[1751301473382,5.52347651,156.82,156.74,5.52347651]
[1751301473591,6.3771,156.78,156.74,11.90157651]
[1751301473882,5.52347651,156.8,156.73,36.12]
[1751301474079,6.3782,156.75,156.73,36.12]
[1751301474278,5.52347651,156.8,156.73,36.12]
[1751301474681,6.3779,156.76,156.73,36.12]
[1751301474884,11.45432259,156.83,156.73,36.12]
[1751301475081,5.52347651,156.83,156.73,36.12]
[1751301475285,6.377,156.78,156.74,6.3782]
[1751301475480,11.45432259,156.83,156.73,36.12]
[1751301475679,6.3775,156.77,156.73,42.4986]
[1751301475887,5.52347651,156.81,156.73,42.4986]
[1751301477286,11.45432259,156.81,156.73,36.12]
[1751301477488,11.45432259,156.83,156.73,41.64347651]
[1751301477880,5.52347651,156.81,156.73,36.12]
[1751301478284,6.3782,156.75,156.73,36.12]
[1751301479480,5.93084608,156.81,156.73,36.12]
[1751301479686,5.93084608,156.81,156.73,41.64347651]
[1751301479886,5.52347651,156.82,156.73,41.64347651]
[1751301480398,6.3769,156.78,156.73,41.64347651]
[1751301480597,49.70272259,156.84,156.73,41.64347651]
[1751301480798,38.2484,156.84,156.75,5.52347651]
[1751301481000,36.12,156.84,156.75,5.52347651]
[1751301481201,41.64347651,156.87,156.77,5.52347651]
[1751301481397,41.64347651,156.87,156.8,6.3757]
[1751301481398,6.3748,156.83,156.8,6.3757]
[1751301481797,6.3745,156.84,156.8,6.3757]
[1751301482000,6.3745,156.84,156.81,2.2118]
[1751301483196,6.3745,156.84,156.81,8.5873]
[1751301483802,6.3747,156.83,156.81,2.2118]
[1751301483998,5.52347651,156.87,156.81,2.2118]
[1751301484200,11.45432259,156.87,156.81,2.2118]
[1751301484398,5.52347651,156.85,156.77,36.12]
[1751301484599,42.05084608,156.86,156.77,36.12]
[1751301484795,6.3748,156.83,156.79,6.3761]
[1751301484999,36.12,156.86,156.79,6.3761]
[1751301485405,6.3752,156.82,156.79,6.3761]
[1751301485608,36.12,156.86,156.79,6.3761]
[1751301486401,36.12,156.86,156.8,6.3759]
[1751301486601,36.12,156.86,156.77,36.12]
[1751301486807,36.12,156.86,156.77,41.64347651]
[1751301487205,6.376,156.8,156.77,36.12]
[1751301488703,5.52347651,156.83,156.76,2.1146]
[1751301488908,11.45432259,156.83,156.74,36.12]
[1751301489100,6.3765,156.79,156.74,36.12]
[1751301489304,6.3765,156.79,156.75,6.3777]
[1751301490713,6.3768,156.78,156.75,6.3777]
[1751301491514,11.45432259,156.83,156.76,6.3775]
[1751301491813,5.93084608,156.84,156.76,6.3775]
[1751301492015,6.3768,156.78,156.76,6.3775]
[1751301492410,6.3768,156.78,156.75,11.90127651]
[1751301492906,5.93084608,156.83,156.74,42.4982]
[1751301492907,6.3772,156.77,156.74,42.4982]
[1751301493100,5.93084608,156.82,156.74,42.4982]
[1751301493307,5.93084608,156.82,156.74,36.12]
[1751301493506,11.45432259,156.81,156.74,36.12]
[1751301494510,6.3774,156.77,156.74,42.4983]
[1751301494712,5.93084608,156.82,156.74,36.12]
[1751301494913,6.3745,156.84,156.79,5.52347651]
[1751301495107,5.93084608,156.87,156.8,37.7053]
[1751301495712,6.3739,156.85,156.8,37.7053]
[1751301496309,5.93084608,156.87,156.8,37.7053]
[1751301496505,41.47084608,156.88,156.8,39.8593]
[1751301496909,6.3735,156.86,156.8,39.8593]
[1751301497512,41.47084608,156.91,156.83,5.52347651]
[1751301497707,35.54,156.91,156.84,35.54]
[1751301498014,6.3721,156.9,156.86,6.3731]
[1751301498409,6.3717,156.91,156.85,5.52347651]
[1751301498610,35.54,156.94,156.85,5.52347651]
[1751301498910,35.54,156.94,156.88,6.3723]
[1751301499111,6.3714,156.92,156.88,6.3723]
[1751301499316,35.54,156.94,156.88,6.3723]
[1751301499616,41.06347651,156.94,156.85,5.52347651]
[1751301499814,6.3722,156.9,156.85,5.52347651]
[1751301500014,6.3722,156.9,156.86,6.3732]
[1751301500214,41.06347651,156.94,156.85,5.52347651]
[1751301500514,5.52347651,156.92,156.84,35.54]
[1751301500714,5.52347651,156.91,156.84,35.54]
[1751301501017,5.52347651,156.91,156.83,35.52]
[1751301501213,5.52347651,156.89,156.83,35.52]
[1751301501517,6.3738,156.86,156.83,35.52]
[1751301501718,5.52347651,156.89,156.83,35.52]
[1751301501912,6.374,156.85,156.83,35.52]
[1751301502816,6.3743,156.84,156.83,35.52]
[1751301503613,6.3748,156.83,156.8,39.8393]
[1751301504021,6.3739,156.85,156.8,46.2152]
[1751301504412,5.52347651,156.89,156.82,6.3749]
[1751301504622,6.3735,156.87,156.8,45.36277651]
[1751301504822,37.7647,156.9,156.8,45.36277651]
[1751301505124,11.45432259,156.92,156.82,5.52347651]
[1751301505319,11.45432259,156.92,156.83,2.24]
[1751301505320,5.52347651,156.92,156.83,2.24]
[1751301505518,5.52347651,156.92,156.84,35.52]
[1751301505722,5.52347651,156.92,156.84,41.8942]
[1751301506228,35.52,156.93,156.84,41.8942]
[1751301506429,41.04347651,156.93,156.84,41.8942]
[1751301507622,6.3729,156.88,156.84,41.8942]
[1751301507927,41.04347651,156.93,156.85,6.3738]
[1751301508225,5.93084608,156.95,156.86,5.52347651]
[1751301508431,41.04347651,156.97,156.87,4.3725]
[1751301508622,41.04347651,156.97,156.88,35.52]
[1751301508926,5.52347651,156.95,156.88,35.52]
[1751301510123,41.04347651,156.97,156.88,35.52]
[1751301510329,6.371,156.93,156.89,6.3722]
[1751301510721,5.52347651,156.95,156.87,4.3725]
[1751301510922,5.52347651,156.95,156.87,2.1849]
[1751301511230,5.52347651,156.93,156.87,2.1849]
[1751301511732,6.3727,156.88,156.87,2.1849]
[1751301512830,5.52347651,156.91,156.84,2.1131]
[1751301513226,6.3737,156.86,156.84,2.1131]
[1751301515533,5.52347651,156.91,156.83,35.52]
[1751301516929,6.3737,156.86,156.83,35.52]
[1751301517628,6.3741,156.85,156.83,35.52]
[1751301518031,6.3743,156.84,156.83,35.52]
[1751301518230,41.04347651,156.89,156.81,2.1913]
[1751301518729,6.3745,156.84,156.81,2.1913]
[1751301518927,41.04347651,156.89,156.81,2.1913]
[1751301519331,6.3742,156.85,156.81,8.5666]
[1751301520232,6.3742,156.85,156.82,6.375]
[1751301520535,41.45084608,156.92,156.84,6.3741]
[1751301520832,35.52,156.95,156.86,5.52347651]
[1751301521036,35.52,156.95,156.88,5.52347651]
[1751301521331,592.02347651,156.98,156.88,41.04347651]
[1751301521524,592.02347651,156.98,156.89,2.1293]
[1751301521729,6.3704,156.94,156.89,7.65277651]
[1751301521929,5.52347651,156.98,156.89,2.1293]
[1751301522427,5.52347651,156.96,156.89,2.1293]
[1751301522632,5.52347651,156.94,156.87,2.2022]
[1751301522940,6.3725,156.89,156.87,2.2022]
[1751301523534,6.3727,156.88,156.87,2.2022]
[1751301523735,5.52347651,156.94,156.87,2.2022]
[1751301524132,6.3726,156.89,156.87,2.2022]
[1751301525642,6.3727,156.88,156.87,2.2022]
[1751301525941,5.52347651,156.94,156.87,2.2022]
[1751301526242,6.3726,156.89,156.87,2.2022]
[1751301526438,5.52347651,156.94,156.87,2.2022]
[1751301526638,6.3723,156.89,156.87,2.2022]
[1751301526844,5.52347651,156.94,156.87,2.2022]
[1751301527342,6.3725,156.89,156.87,2.2022]
[1751301527844,5.52347651,156.92,156.85,35.48]
[1751301528039,5.52347651,156.92,156.83,37.676]
[1751301528442,6.3735,156.86,156.83,37.676]
[1751301528838,5.52347651,156.9,156.83,37.676]
[1751301529043,5.52347651,156.9,156.83,44.0506]
[1751301529448,5.52347651,156.9,156.83,37.676]
[1751301529644,6.3737,156.86,156.83,37.676]
[1751301529846,5.52347651,156.9,156.83,37.676]
[1751301530745,6.3741,156.85,156.83,2.196]
[1751301531744,5.52347651,156.9,156.81,35.48]
[1751301531745,5.52347651,156.88,156.81,35.48]
[1751301531938,5.52347651,156.86,156.79,2.1796]
[1751301532441,6.3751,156.83,156.79,2.1796]
[1751301532647,5.52347651,156.86,156.79,2.1796]
[1751301532845,5.52347651,156.86,156.79,8.5556]
[1751301533441,6.3749,156.83,156.8,6.3759]
[1751301534136,5.52347651,156.86,156.79,2.1796]
[1751301534539,5.52347651,156.84,156.78,37.6]
[1751301535146,5.52347651,156.84,156.78,2.12]
[1751301535441,5.52347651,156.82,156.75,586.52]
[1751301535941,5.52347651,156.82,156.75,35.48]
[1751301536938,6.3773,156.77,156.75,35.48]
[1751301538444,6.3776,156.76,156.75,35.48]
[1751301538638,5.52347651,156.8,156.73,4.1736]
[1751301540841,6.3778,156.76,156.73,4.1736]
[1751301541047,7.80437651,156.82,156.73,4.1736]
[1751301541248,6.3782,156.75,156.73,4.1736]
[1751301541844,6.3784,156.74,156.73,2.073]
[1751301542638,5.52347651,156.74,156.64,43.26517651]
[1751301543149,6.3796,156.71,156.66,6.3813]
[1751301544046,5.52347651,156.74,156.64,43.26517651]
[1751301544652,6.3803,156.7,156.65,6.3818]
[1751301545546,5.52347651,156.74,156.65,6.3818]
[1751301545752,5.52347651,156.72,156.64,35.5]
[1751301546047,6.3802,156.7,156.64,37.7763]
[1751301546253,6.3802,156.7,156.64,43.29977651]
[1751301546452,5.52347651,156.74,156.64,43.29977651]
[1751301546750,5.52347651,156.72,156.63,586.42]
[1751301546957,41.02347651,156.72,156.63,586.42]
[1751301547347,6.3815,156.67,156.63,586.42]
[1751301547753,6.3811,156.68,156.63,592.8025]
[1751301547952,41.02347651,156.72,156.63,592.8025]
[1751301548451,6.3815,156.67,156.63,592.8025]
[1751301549059,6.3815,156.67,156.63,586.42]
[1751301549253,6.3816,156.66,156.63,586.42]
[1751301549558,41.02347651,156.72,156.63,586.42]
[1751301549760,41.02347651,156.72,156.63,592.8028]
[1751301549952,41.02347651,156.72,156.63,586.42]
[1751301550356,6.3808,156.69,156.64,6.3823]
[1751301551259,41.02347651,156.72,156.63,592.8028]
[1751301551662,6.3811,156.68,156.63,592.8028]
[1751301551864,6.3811,156.68,156.64,6.3824]
[1751301552162,6.3812,156.67,156.63,586.42]
[1751301552756,6.3812,156.67,156.63,592.8026]
[1751301553263,6.381,156.68,156.63,586.42]
[1751301553466,41.02347651,156.72,156.63,586.42]
[1751301553467,41.02347651,156.72,156.64,6.3824]
[1751301553761,39.23244199,156.72,156.64,3.73244199]
[1751301553960,3.73244199,156.72,156.65,2.1993]
[1751301554152,6.3798,156.71,156.66,3.73244199]
[1751301554358,6.3798,156.71,156.67,41.8209]
[1751301554556,6.3787,156.74,156.68,3.73244199]
[1751301554765,3.73244199,156.77,156.68,5.84914199]
[1751301555061,3.73244199,156.75,156.66,35.44]
[1751301555258,3.73244199,156.75,156.66,41.34904199]
[1751301555663,6.3801,156.7,156.67,6.3812]
[1751301556764,3.73244199,156.75,156.66,41.34904199]
[1751301557057,3.73244199,156.73,156.66,37.6166]
[1751301557464,3.73244199,156.73,156.66,2.1766]
[1751301558159,6.3806,156.69,156.66,2.1766]
[1751301558369,3.73244199,156.73,156.66,2.1766]
[1751301558559,6.3806,156.69,156.66,2.1766]
[1751301558864,3.73244199,156.73,156.66,8.5582]
[1751301559170,3.73244199,156.73,156.66,2.1766]
[1751301559867,6.3805,156.69,156.66,2.1766]
[1751301561468,6.3808,156.68,156.66,2.1766]
[1751301563871,6.3806,156.69,156.66,2.1766]